bitfinex-derivatives/quotes_ETHF0:USTF0_20260128
["timestamp","ask_amount","ask_price","bid_price","bid_amount"]
[1769620516171,3.53173351,3008.4,3007.3,0.18209084]
[1769620516468,1.22960455,3008.5,3007.3,0.18209084]
[1769620516676,3.5320109,3008.4,3007.3,0.18209084]
[1769620516870,1.24841901,3008.5,3007.3,0.18209084]
[1769620517169,3.53201608,3008.4,3007.3,0.18209084]
[1769620517370,1.24841901,3008.5,3007.3,0.18209084]
[1769620517560,3.53214079,3008.4,3007.3,0.18209084]
[1769620517765,0.18523446,3008.5,3007.3,0.18209084]
[1769620518067,3.53214099,3008.4,3007.3,0.18209084]
[1769620518267,0.18523446,3008.5,3007.3,0.18209084]
[1769620518470,3.53233736,3008.4,3007.3,0.18209084]
[1769620518664,0.18523446,3008.5,3007.3,0.18209084]
[1769620518865,40.80411687,3008.6,3007.3,0.18209084]
[1769620519169,3.548072,3008.5,3007.3,0.18209084]
[1769620519363,0.01599674,3008.5,3007.3,0.18209084]
[1769620519669,40.80411687,3008.6,3007.3,0.18209084]
[1769620519973,3.53131802,3008.5,3007.3,0.18209084]
[1769620520170,0.01525373,3008.5,3007.3,0.18209084]
[1769620520765,3.54645597,3008.4,3007.3,0.18209084]
[1769620520966,0.01525373,3008.4,3007.3,0.18209084]
[1769620521972,0.01464054,3008.0,3006.9,0.18209084]
[1769620522270,6.22364054,3007.9,3006.9,0.18209084]
[1769620522973,6.47764054,3007.9,3006.9,0.18209084]
[1769620524079,6.463,3007.9,3006.9,0.18209084]
[1769620525179,0.01523742,3007.8,3006.9,0.18209084]
[1769620525377,0.01523742,3007.8,3006.6,0.16938188]
[1769620525577,0.01523742,3007.7,3006.6,0.16938188]
[1769620526267,0.16646,3007.8,3006.6,0.16938188]
[1769620526669,0.18121409,3007.8,3006.6,0.16938188]
[1769620527676,0.17987741,3008.4,3006.6,0.16938188]
[1769620527877,3.52799856,3008.3,3006.6,0.16938188]
[1769620528077,2.119,3008.3,3006.6,0.16938188]
[1769620528276,1.953,3008.2,3006.6,0.16938188]
[1769620529380,1.96390585,3008.2,3007.8,0.97585097]
[1769620529572,1.96390585,3008.2,3007.2,0.1680167]
[1769620532179,0.01090585,3008.2,3007.2,0.1680167]
[1769620532383,6.514,3008.3,3007.2,0.1680167]
[1769620532581,0.20086408,3008.5,3007.2,0.1680167]
[1769620532767,3.53214889,3008.4,3007.2,0.1680167]
[1769620533084,0.00411687,3008.6,3007.2,0.1680167]
[1769620534177,0.02889639,3008.5,3007.2,0.1680167]
[1769620534378,0.00411687,3008.6,3007.2,0.1680167]
[1769620536273,0.00411687,3008.6,3007.3,0.17027841]
[1769620538479,0.02570186,3008.6,3007.3,0.17027841]
[1769620538684,0.02158499,3008.4,3007.3,0.17027841]
[1769620538980,0.02158499,3008.2,3006.7,0.17022666]
[1769620539678,0.16643,3008.3,3006.7,0.17022666]
[1769620541685,0.18196884,3008.3,3006.7,0.17022666]
[1769620542188,0.01374384,3008.1,3006.7,0.17022666]
[1769620542391,0.01374384,3008.0,3006.7,0.17022666]
[1769620542689,0.01374384,3008.0,3006.1,1.953]
[1769620542690,0.01374384,3007.7,3006.4,0.17105341]
[1769620542891,0.16645,3007.8,3006.4,0.17105341]
[1769620543276,42.39488015,3007.9,3006.4,0.17105341]
[1769620543491,40.8,3007.9,3006.4,0.17105341]
[1769620544479,0.01228122,3008.1,3006.4,0.17105341]
[1769620544681,3.5354763,3008.0,3006.4,0.17105341]
[1769620544884,0.01228122,3008.1,3006.4,0.17105341]
[1769620545087,44.33541031,3008.0,3006.4,0.17105341]
[1769620545292,0.01188679,3007.9,3006.4,0.17105341]
[1769620546699,0.01090861,3007.7,3006.4,0.17105341]
[1769620547087,40.97734861,3008.0,3006.4,0.17105341]
[1769620547292,3.53366348,3007.9,3006.4,0.17105341]
[1769620547491,3.53366348,3007.8,3006.4,0.17105341]
[1769620547796,47.48144,3008.0,3006.4,0.17105341]
[1769620547994,3.53386559,3007.9,3006.4,0.17105341]
[1769620548291,47.48144,3008.0,3006.4,0.17105341]
[1769620548992,3.53405697,3007.9,3006.4,0.17105341]
[1769620549194,47.48892019,3008.0,3006.4,0.17105341]
[1769620549395,0.00605809,3007.8,3006.4,0.17105341]
[1769620552794,1.59488015,3007.9,3006.4,0.17105341]
[1769620553094,3.53556286,3007.8,3006.4,0.17105341]
[1769620553294,3.53556286,3007.7,3006.4,0.17105341]
[1769620553492,1.59488015,3007.9,3006.4,0.17105341]
[1769620553695,3.53200766,3007.8,3006.4,0.17105341]
[1769620553890,3.53200766,3007.7,3006.4,0.17105341]
[1769620554086,47.315,3008.0,3006.4,0.17105341]
[1769620554392,0.16647,3007.6,3006.4,0.17105341]
[1769620555098,6.72747,3007.6,3006.4,0.17105341]
[1769620557896,0.16647,3007.5,3006.4,0.17105341]
[1769620559999,40.96644,3008.0,3006.4,0.17105341]
[1769620560194,10.10162134,3007.9,3006.4,0.17105341]
[1769620560396,6.568,3007.9,3006.4,0.17105341]
[1769620560597,40.96644,3008.0,3006.4,0.17105341]
[1769620560897,0.16644,3008.0,3006.4,0.17105341]
[1769620561693,0.17052687,3008.6,3006.5,0.17130861]
[1769620561894,3.53431352,3008.5,3006.6,0.17130861]
[1769620562094,3.53431352,3008.4,3006.6,0.17130861]
[1769620562296,43.49352687,3008.6,3006.6,0.17130861]
[1769620562495,0.00411687,3008.6,3006.9,0.33780009]
[1769620562696,0.00411687,3008.6,3007.0,0.17130009]
[1769620562990,0.00411687,3008.6,3007.2,0.17130009]
[1769620563395,6.575,3009.3,3007.4,0.17064014]
[1769620563604,0.16635,3009.7,3007.4,0.17064014]
[1769620563605,3.53482649,3009.2,3007.4,0.17064014]
[1769620563901,40.8,3009.2,3007.4,0.17064014]
[1769620564294,0.27157021,3009.3,3007.4,0.17064014]
[1769620564493,3.53481484,3009.2,3007.4,0.17064014]
[1769620564699,0.00412097,3009.3,3007.4,0.17064014]
[1769620564899,3.51100806,3009.2,3007.4,0.17064014]
[1769620565104,0.00412097,3009.3,3007.4,0.17064014]
[1769620565403,0.43538541,3009.3,3007.4,0.17064014]
[1769620567706,0.43538541,3009.3,3007.5,0.16551295]
[1769620567891,41.23538541,3009.3,3007.5,0.16551295]
[1769620569807,40.97049097,3009.3,3007.5,0.16551295]
[1769620570808,41.24139324,3009.3,3007.5,0.16551295]
[1769620572604,40.97049097,3009.3,3007.5,0.33198295]
[1769620572811,0.17049097,3009.3,3007.6,0.16460643]
[1769620574513,0.00412097,3009.3,3007.6,0.33106643]
[1769620574805,0.00412097,3009.3,3007.7,0.16302206]
[1769620576520,0.16638,3009.2,3007.7,0.16302206]
[1769620577413,0.00412097,3009.3,3007.7,0.16302206]
[1769620580616,0.16638,3009.2,3007.7,0.16302206]
[1769620582015,0.16639,3009.1,3007.7,0.16302206]
[1769620582215,0.16639,3009.0,3007.7,0.16302206]
[1769620582918,0.1664,3008.9,3007.7,0.16302206]
[1769620583214,0.1664,3008.8,3007.7,0.16302206]
[1769620583820,0.16642,3008.5,3006.9,0.16337124]
[1769620584215,0.16643,3008.2,3006.9,0.16337124]
[1769620585918,0.16645,3007.9,3006.5,0.16340528]
[1769620587407,40.8,3008.4,3006.5,0.16340528]
[1769620587607,0.16648,3007.3,3006.2,0.16207861]
[1769620587820,0.1665,3007.0,3006.0,0.00340483]
[1769620588014,0.16954205,3007.0,3006.0,0.00340483]
[1769620589814,40.8,3006.9,3006.0,0.00340483]
[1769620590213,40.8,3006.9,3005.3,0.162056]
[1769620590618,0.16652,3006.6,3005.3,0.162056]
[1769620590816,6.72752,3006.6,3005.3,0.162056]
[1769620591209,6.72752,3006.6,3005.3,0.16615434]
[1769620591816,7.00005515,3006.6,3005.3,0.16615434]
[1769620592615,0.43905515,3006.6,3005.3,0.16615434]
[1769620593017,40.8,3006.9,3005.3,0.16615434]
[1769620593218,6.564,3006.8,3005.3,0.16615434]
[1769620593418,6.5654755,3006.8,3005.3,0.16615434]
[1769620593720,0.0014755,3006.7,3005.3,0.16615434]
[1769620595627,6.57,3006.8,3005.3,0.16615434]
[1769620596116,41.0717602,3006.9,3005.3,0.16615434]
[1769620596316,6.587,3006.8,3005.3,0.16615434]
[1769620597225,6.5888276,3006.8,3005.3,0.16615434]
[1769620597523,0.0018276,3006.7,3005.3,0.16615434]
[1769620598926,6.587,3006.8,3005.3,0.16615434]
[1769620599827,40.8,3006.9,3005.3,0.16615434]
[1769620600024,47.419,3006.9,3005.3,0.16615434]
[1769620601530,47.58551,3006.9,3005.3,0.16615434]
[1769620601826,6.79851,3006.8,3005.3,0.16615434]
[1769620602330,0.16651,3006.8,3005.3,0.16615434]
[1769620602527,6.637,3006.7,3005.3,0.16615434]
[1769620602929,0.16651,3006.8,3005.3,0.16615434]
[1769620603129,6.80551,3006.8,3005.3,0.16615434]
[1769620604024,6.81251,3006.8,3005.3,0.16615434]
[1769620605232,0.16651,3006.8,3005.3,0.16615434]
[1769620605429,6.81951,3006.8,3005.3,0.16615434]
[1769620607927,0.00304205,3007.0,3005.3,0.16615434]
[1769620608134,0.00304205,3007.0,3005.7,0.16077029]
[1769620608333,0.00304205,3007.0,3005.9,0.16077102]
[1769620608535,1.06097289,3007.7,3006.2,0.16077102]
[1769620609930,6.678,3007.9,3006.2,0.16077102]
[1769620610134,6.68220612,3007.9,3006.2,0.16077102]
[1769620611343,6.69117307,3007.9,3006.2,0.16077102]
[1769620613137,0.01317307,3007.9,3006.2,0.16077102]
[1769620614340,0.00947621,3007.8,3006.2,0.16077102]
[1769620617050,0.00420612,3007.9,3006.5,0.15312044]
[1769620617642,0.00420612,3007.9,3006.7,0.15331507]
[1769620621852,0.01140433,3007.9,3006.7,0.15331507]
[1769620622053,0.00719821,3007.8,3006.2,0.15359848]
[1769620622648,0.00700507,3007.5,3006.2,0.15359848]
[1769620623552,0.00757855,3007.4,3006.2,0.15359848]
[1769620625947,0.00382216,3007.3,3006.2,0.15359848]
[1769620627151,0.16648,3007.4,3006.2,0.15359848]
[1769620629249,0.16770223,3007.4,3006.2,0.15359848]
[1769620629456,0.00122223,3007.3,3006.2,0.15359848]
[1769620629844,0.16648,3007.4,3006.2,0.15359848]
[1769620630349,0.16752853,3007.4,3006.2,0.15359848]
[1769620630858,0.00525465,3007.9,3006.2,0.15359848]
[1769620631449,0.00420612,3007.9,3006.4,0.15705704]
[1769620634348,0.1664,3008.8,3006.9,0.15882104]
[1769620634553,0.26881935,3009.1,3007.1,0.15882104]
[1769620634863,44.34167916,3009.0,3007.1,0.15882104]
[1769620635159,3.54167916,3008.9,3007.1,0.15882104]
[1769620635457,3.54087132,3008.8,3007.1,0.15882104]
[1769620635658,0.00352372,3008.9,3007.1,0.15882104]
[1769620635853,3.54084304,3008.8,3007.1,0.15882104]
[1769620636059,0.16992372,3008.9,3007.1,0.15882104]
[1769620636259,3.54080246,3008.8,3007.1,0.15882104]
[1769620636567,3.54080246,3008.7,3007.1,0.15882104]
[1769620636859,0.16642,3008.5,3007.1,0.15882104]
[1769620637055,3.70756213,3008.4,3007.1,0.15882104]
[1769620637254,0.16642,3008.4,3007.1,0.15882104]
[1769620637658,0.16643,3008.3,3007.1,0.15882104]
[1769620637858,0.16644,3008.1,3006.6,0.15827388]
[1769620638361,1.59549916,3008.4,3006.6,0.15827388]
[1769620638561,3.54255286,3008.3,3006.6,0.15827388]
[1769620638758,0.16645,3007.9,3006.6,0.15827388]
[1769620639455,1.76191916,3008.4,3006.6,0.15827388]
[1769620639657,3.5418015,3008.3,3006.6,0.15827388]
[1769620639861,3.5418015,3008.2,3006.6,0.15827388]
[1769620640160,3.5418015,3008.1,3006.6,0.15827388]
[1769620640359,0.16643,3008.3,3006.6,0.15827388]
[1769620640559,3.70850317,3008.2,3006.6,0.15827388]
[1769620640755,0.16643,3008.2,3006.6,0.15827388]
[1769620642262,3.54161978,3008.1,3006.6,0.15827388]
[1769620642462,0.16643,3008.2,3006.6,0.15827388]
[1769620642762,3.54176619,3008.1,3006.6,0.15827388]
[1769620642959,0.16644,3008.1,3006.6,0.15827388]
[1769620643159,0.16644,3008.0,3006.6,0.15827388]
[1769620643353,0.16645,3007.9,3006.6,0.15827388]
[1769620643556,3.88749916,3008.4,3006.6,0.15827388]
[1769620643857,3.88749916,3008.4,3005.9,1.953]
[1769620643858,3.54169125,3008.3,3005.9,7.30231008]
[1769620644064,0.16651,3006.9,3005.4,0.15599289]
[1769620644559,40.96651,3006.9,3005.4,0.15599289]
[1769620644763,40.97102489,3006.9,3005.4,0.15599289]
[1769620645062,0.00451489,3006.8,3005.4,0.15599289]
[1769620646458,40.96651,3006.9,3005.4,0.15599289]
[1769620651864,0.16651,3006.8,3005.4,0.15599289]
[1769620652866,0.16652,3006.6,3005.4,0.15599289]
[1769620653064,0.16652,3006.6,3005.3,0.00409834]
[1769620653065,0.16654,3006.2,3005.3,0.00409834]
[1769620653271,0.16655,3006.1,3004.8,0.15679549]
[1769620654267,0.16655,3006.1,3004.8,0.1595575]
[1769620655069,0.00274142,3006.6,3004.8,0.1595575]
[1769620655261,6.71374142,3006.6,3004.8,0.1595575]
[1769620655461,6.88026142,3006.6,3004.8,0.1595575]
[1769620655667,0.16653,3006.5,3004.8,0.1595575]
[1769620655871,0.16653,3006.4,3004.8,0.1595575]
[1769620656369,0.16654,3006.3,3004.8,0.1595575]
[1769620663077,0.00274142,3006.6,3005.1,0.15968716]
[1769620663276,0.26592225,3006.6,3005.1,0.15968716]
[1769620663577,0.00274142,3006.6,3005.1,0.15968716]
[1769620665275,0.16653,3006.4,3005.1,0.15968716]
[1769620666276,0.00274142,3006.6,3005.1,0.15968716]
[1769620667082,6.71674142,3006.6,3005.1,0.15968716]
[1769620667375,0.00274142,3006.6,3005.1,0.15968716]
[1769620675286,3.58512876,3006.5,3005.1,0.15968716]
[1769620675483,3.58512876,3006.4,3005.1,0.15968716]
[1769620675688,0.00274142,3006.6,3005.1,0.15968716]
[1769620675987,9.94606228,3008.5,3004.8,0.00276201]
[1769620675988,0.31304745,3007.4,3005.6,0.1498748]
[1769620676387,1.05155492,3007.6,3005.8,0.1498748]
[1769620676585,52.64458892,3007.7,3005.8,0.1498748]
[1769620676780,0.14656745,3007.6,3005.9,0.1498748]
[1769620677286,0.15078941,3007.6,3005.9,0.1498748]
[1769620679893,0.14656745,3007.3,3005.9,0.1498748]
[1769620680091,0.14656745,3007.1,3005.9,0.1498748]
[1769620680286,0.14656745,3007.0,3005.9,0.1498748]
[1769620680489,4.20349,3007.2,3005.9,0.1498748]
[1769620681090,0.14656745,3007.1,3005.9,0.1498748]
[1769620682690,5.39556745,3007.1,3005.9,0.1498748]
[1769620682993,0.3078545,3007.0,3005.9,0.1498748]
[1769620683193,0.1413545,3006.9,3005.2,0.1498748]
[1769620683389,0.14174946,3006.8,3005.2,0.1498748]
[1769620684503,0.14166252,3006.7,3005.2,0.1498748]
[1769620685104,0.30818252,3006.7,3005.2,0.1498748]
[1769620686699,0.14236782,3006.6,3005.2,0.1498748]
[1769620690406,0.16652,3006.7,3005.2,0.1498748]
[1769620690697,0.30820952,3007.2,3005.3,0.1498748]
[1769620690997,3.55548172,3007.1,3005.7,0.1498748]
[1769620691200,0.30818952,3007.5,3005.7,0.1498748]
[1769620691397,0.14105918,3007.3,3005.7,0.1498748]
[1769620691703,3.55572526,3007.2,3005.7,0.1498748]
[1769620692699,0.14097992,3007.1,3005.7,0.1498748]
[1769620694009,0.14374626,3006.9,3005.7,0.1498748]
[1769620697605,0.1665,3007.0,3005.7,0.1498748]
[1769620698410,0.30794696,3007.0,3005.7,0.1498748]
[1769620699111,0.1665,3007.0,3005.7,0.1498748]
[1769620701410,0.14144696,3007.3,3005.7,0.1498748]
[1769620701613,3.69982631,3007.2,3005.7,0.1498748]
[1769620701810,0.14520699,3007.0,3005.7,0.1498748]
[1769620702413,3.69990721,3006.9,3005.7,0.1498748]
[1769620702608,0.14513524,3006.9,3005.7,0.1498748]
[1769620703710,0.14500425,3006.7,3005.7,0.1498748]
[1769620705117,0.13733095,3006.5,3005.4,0.13845852]
[1769620705610,0.16652,3006.7,3005.4,0.13845852]
[1769620705917,3.55331161,3006.6,3005.4,0.13845852]
[1769620706110,0.30385095,3006.7,3005.4,0.13845852]
[1769620706417,0.16652,3006.7,3005.4,0.13845852]
[1769620707515,0.13789938,3007.3,3005.5,0.30805169]
[1769620707816,0.13789938,3007.3,3005.6,0.14147169]
[1769620707817,3.88275276,3007.2,3005.6,0.14147169]
[1769620708025,3.55471521,3007.1,3005.6,0.14147169]
[1769620708318,3.55471521,3007.0,3005.6,0.14147169]
[1769620708620,3.55471521,3006.9,3005.6,0.14147169]
[1769620708918,3.55471521,3006.8,3005.6,0.14147169]
[1769620709115,0.13789938,3007.3,3005.6,0.14147169]
[1769620709316,3.88319119,3007.2,3005.6,0.14147169]
[1769620709517,3.55506736,3007.1,3005.6,0.14147169]
[1769620709717,3.55506736,3007.0,3005.8,0.14147169]
[1769620709918,0.14212134,3007.6,3005.9,0.14147169]
[1769620710120,3.88466163,3007.5,3005.9,0.14147169]
[1769620710318,3.88466163,3007.4,3005.9,0.14147169]
[1769620710519,3.55646019,3007.3,3005.9,0.14147169]
[1769620710821,3.55646019,3007.2,3005.9,0.14147169]
[1769620711016,3.55646019,3007.1,3005.9,0.14147169]
[1769620711219,3.55646019,3007.0,3005.9,0.14147169]
[1769620711419,0.14212134,3007.6,3005.9,0.14147169]
[1769620711719,3.88554569,3007.5,3005.9,0.14147169]
[1769620712018,3.88554569,3007.4,3005.9,0.14147169]
[1769620712211,3.55727275,3007.3,3005.9,0.14147169]
[1769620712412,3.55727275,3007.2,3005.9,0.14147169]
[1769620712614,0.14212134,3007.6,3005.9,0.14147169]
[1769620712809,3.88571197,3007.5,3005.9,0.14147169]
[1769620713016,0.14212134,3007.6,3005.2,7.30231008]
[1769620713017,3.55742587,3007.4,3006.2,0.14147169]
[1769620713320,0.00422196,3007.6,3006.2,0.14147169]
[1769620713514,3.55727512,3007.5,3006.2,0.14147169]
[1769620713718,0.00422196,3007.6,3006.3,0.14147169]
[1769620714017,3.55825414,3007.5,3006.3,0.14147169]
[1769620714222,0.00422196,3007.6,3006.3,0.14147169]
[1769620715421,0.00422196,3007.6,3006.4,0.14147169]
[1769620716321,5.05814075,3008.5,3006.7,0.14147169]
[1769620716525,3.87847419,3008.4,3006.7,0.14147169]
[1769620716820,3.87847419,3008.3,3006.8,0.14147169]
[1769620717014,3.55007788,3008.2,3006.9,0.14147169]
[1769620717322,3.55007788,3008.1,3006.9,0.14147169]
[1769620717619,3.55007788,3008.0,3006.9,0.14147169]
[1769620717821,0.00387836,3008.2,3006.9,0.14147169]
[1769620718023,3.54188372,3008.1,3006.9,0.14147169]
[1769620718215,0.00387836,3008.2,3006.9,0.14147169]
[1769620718415,3.54088562,3008.1,3006.9,0.14147169]
[1769620718615,0.00387836,3008.2,3006.9,0.14147169]
[1769620719618,0.13789938,3008.0,3006.9,0.14147169]
[1769620719820,0.13789938,3007.8,3006.9,0.14147169]
[1769620721816,0.13789938,3007.8,3006.3,6.471]
[1769620721817,0.13789938,3007.8,3006.4,0.14147169]
[1769620723219,0.13789938,3007.6,3006.4,0.14147169]
[1769620725626,0.16646,3007.8,3006.4,0.14147169]
[1769620725820,3.53601238,3007.7,3006.4,0.14147169]
[1769620726119,0.13789938,3007.9,3006.4,0.14147169]
[1769620726323,3.5362079,3007.8,3006.4,0.14147169]
[1769620726527,3.5362079,3007.7,3006.4,0.14147169]
[1769620726728,0.13789938,3008.1,3006.4,0.14147169]
[1769620727028,4.00204722,3008.0,3006.4,0.14147169]
[1769620727218,3.53627207,3007.9,3006.4,0.14147169]
[1769620727419,3.67417145,3007.9,3006.4,0.14147169]
[1769620727619,0.13789938,3007.7,3006.4,0.14147169]
[1769620730924,0.16645,3007.9,3006.4,0.14147169]
[1769620731120,3.5360023,3007.8,3006.4,0.14147169]
[1769620731317,0.13370648,3007.8,3006.4,0.14147169]
[1769620732521,0.16645,3007.9,3006.4,0.14147169]
[1769620732724,3.53750542,3007.8,3006.4,0.14147169]
[1769620732925,0.16645,3007.9,3006.4,0.14147169]
[1769620733125,3.53759541,3007.8,3006.4,0.14147169]
[1769620733325,0.16645,3007.9,3006.4,0.14147169]
[1769620733522,3.53806815,3007.8,3006.4,0.14147169]
[1769620733724,0.29876186,3007.9,3006.4,0.14147169]
[1769620734024,0.13231186,3007.7,3006.4,0.14147169]
[1769620737432,0.16645,3007.9,3006.4,0.14147169]
[1769620737636,3.54146362,3007.8,3006.4,0.14147169]
[1769620737833,3.54146362,3007.7,3006.4,0.14147169]
[1769620738038,0.16645,3007.9,3006.4,0.14147169]
[1769620738234,3.54147875,3007.8,3006.4,0.14147169]
[1769620738436,3.54147875,3007.7,3006.4,0.14147169]
[1769620738637,0.16645,3007.9,3006.4,0.14147169]
[1769620738837,3.54240219,3007.8,3006.4,0.14147169]
[1769620739134,3.54240219,3007.7,3006.4,0.14147169]
[1769620739333,0.16645,3007.9,3006.4,0.14147169]
[1769620739531,0.00387836,3008.2,3006.9,0.15004842]
[1769620739737,0.00387836,3008.2,3007.0,0.15004842]
[1769620739928,0.00387836,3008.2,3007.0,0.15329471]
[1769620740130,0.00387836,3008.2,3007.1,0.15004842]
[1769620741839,0.00387836,3008.2,3007.2,0.15004842]
[1769620744540,0.13275099,3008.2,3007.2,0.15004842]
[1769620745237,3.54189766,3008.1,3007.0,0.00324629]
[1769620745443,0.12987248,3007.9,3007.0,0.00324629]
[1769620747237,0.12987248,3007.9,3007.0,0.15329471]
[1769620749544,3.54248562,3007.8,3007.0,0.15329471]
[1769620749742,0.12987248,3007.9,3007.0,0.15329471]
[1769620749937,3.54248752,3007.8,3007.0,0.15329471]
[1769620750137,0.12987248,3007.9,3007.0,0.15329471]
[1769620750334,3.54233275,3007.8,3007.0,0.15329471]
[1769620750536,0.14072477,3008.2,3007.0,0.15329471]
[1769620750735,3.5425097,3008.1,3007.0,0.15329471]
[1769620750932,0.00387836,3008.2,3007.1,0.15004842]
[1769620753145,0.00387836,3008.2,3007.4,0.15004842]
[1769620753442,0.13724131,3009.0,3007.3,0.15004842]
[1769620753647,0.13724131,3008.8,3007.3,0.15004842]
[1769620753948,3.67431356,3008.7,3007.3,0.15004842]
[1769620754143,3.53707225,3008.6,3007.3,0.15004842]
[1769620754445,0.13720441,3008.5,3007.3,0.15004842]
[1769620755042,3.53801278,3008.4,3007.0,0.15329471]
[1769620755247,0.13720441,3008.2,3007.0,0.00324629]
[1769620755546,0.13763054,3008.0,3007.0,0.00324629]
[1769620757247,0.13763054,3008.0,3007.0,0.15329471]
[1769620760851,0.1399829,3008.2,3007.0,0.15329471]
[1769620761149,3.67904721,3008.1,3007.0,0.15329471]
[1769620761448,0.1399829,3008.1,3007.0,0.15329471]
[1769620764151,0.16643,3008.3,3007.0,0.15329471]
[1769620764454,3.53992849,3008.2,3007.0,0.15329471]
[1769620764749,0.1442014,3008.7,3007.0,0.15329471]
[1769620764951,4.0088477,3008.6,3007.0,0.15329471]
[1769620765154,3.86913281,3008.5,3007.0,0.15329471]
[1769620765454,3.54023387,3008.4,3007.0,0.15329471]
[1769620765648,0.13971489,3008.6,3007.0,0.15329471]
[1769620765649,0.00383739,3008.7,3007.1,0.14221465]
[1769620765854,3.54124707,3008.6,3007.1,0.14221465]
[1769620766056,3.54124707,3008.5,3007.1,0.14221465]
[1769620766255,0.14348777,3008.7,3007.1,0.14221465]
[1769620766452,3.54109848,3008.6,3007.1,0.14221465]
[1769620766654,3.54109848,3008.5,3007.1,0.14221465]
[1769620766853,0.14348777,3008.7,3007.1,0.14221465]
[1769620767055,3.53895849,3008.6,3007.1,0.14221465]
[1769620767255,3.53895849,3008.5,3007.1,0.14221465]
[1769620767455,0.14348777,3008.7,3007.1,0.14221465]
[1769620767752,3.53867207,3008.6,3007.1,0.30870465]
[1769620767954,3.53867207,3008.5,3007.2,0.13620115]
[1769620768149,0.14348777,3008.7,3007.2,0.13620115]
[1769620768350,3.5389482,3008.6,3007.2,0.13620115]
[1769620768657,3.5389482,3008.5,3007.2,0.30269115]
[1769620768853,0.00383739,3008.7,3007.5,0.13620115]
[1769620770060,45.88660137,3009.5,3007.7,0.13620115]
[1769620770061,40.96636,3009.5,3007.7,0.13620115]
[1769620770264,3.84482395,3009.4,3007.8,0.30265115]
[1769620770561,3.84482395,3009.3,3007.9,0.13620115]
[1769620770762,3.84482395,3009.2,3007.9,0.13620115]
[1769620770961,3.5160043,3009.1,3007.9,0.13620115]
[1769620771166,3.5160043,3009.0,3007.9,0.13620115]
[1769620771464,0.00283987,3009.1,3007.9,0.13620115]
[1769620772367,0.13857644,3008.9,3007.9,0.13620115]
[1769620775868,0.13857644,3008.9,3007.6,0.13620115]
[1769620778565,0.13857644,3008.6,3007.3,3.46520115]
[1769620778770,0.13857644,3008.6,3007.4,0.13620115]
[1769620779373,0.13857644,3008.6,3007.3,3.329]
[1769620779874,0.13857644,3008.6,3007.3,3.46520115]
[1769620781476,0.13857644,3008.4,3007.3,3.46520115]
[1769620782176,0.13857644,3008.4,3007.3,3.329]
[1769620785083,0.13857644,3008.2,3007.3,3.329]
[1769620785380,3.47810536,3008.1,3007.3,3.329]
[1769620785576,0.13857644,3008.0,3007.3,3.329]
[1769620786788,0.30500644,3008.3,3007.3,3.329]
[1769620787078,3.61683392,3008.2,3007.3,3.329]
[1769620787281,0.16643,3008.3,3007.4,0.13620115]
[1769620787479,3.47843931,3008.2,3007.4,0.13620115]
[1769620787681,0.16643,3008.3,3007.4,0.13620115]
[1769620787984,3.47844393,3008.2,3007.4,0.13620115]
[1769620788184,0.16643,3008.3,3007.4,0.13620115]
[1769620788385,3.47851089,3008.2,3007.4,0.13620115]
[1769620788574,0.16643,3008.3,3007.4,0.13620115]
[1769620788778,3.47866619,3008.2,3007.4,0.13620115]
[1769620788980,0.13857644,3008.6,3007.4,0.13620115]
[1769620789176,3.47876764,3008.5,3007.4,0.13620115]
[1769620789577,0.13857644,3008.4,3007.3,3.329]
[1769620789786,0.13857644,3008.4,3007.3,3.46520115]
[1769620791488,0.13857644,3008.4,3007.4,0.13620115]
[1769620791688,1.06314677,3008.3,3007.4,0.13620115]
[1769620792295,3.4811479,3008.2,3007.5,0.13620115]
[1769620792586,1.06314677,3008.7,3007.5,0.13620115]
[1769620792793,3.48114909,3008.6,3007.5,0.13620115]
[1769620793090,3.48114909,3008.5,3007.5,0.13620115]
[1769620793291,3.48114909,3008.4,3007.5,0.13620115]
[1769620793491,3.48114909,3008.3,3007.5,0.13620115]
[1769620793792,3.48114909,3008.2,3007.5,0.13620115]
[1769620793992,0.13853664,3008.6,3007.5,0.13620115]
[1769620794294,3.48149815,3008.5,3007.5,0.13620115]
[1769620794493,3.48149815,3008.4,3007.5,0.13620115]
[1769620794789,3.48149815,3008.3,3007.5,0.13620115]
[1769620794993,3.48149815,3008.2,3007.5,0.13620115]
[1769620795184,0.13852186,3008.5,3007.5,0.13620115]
[1769620795384,3.48206518,3008.4,3007.5,0.13620115]
[1769620795684,3.48206518,3008.3,3007.5,0.13620115]
[1769620795883,3.48206518,3008.2,3007.5,0.13620115]
[1769620796081,0.13852186,3008.5,3007.5,0.13620115]
[1769620796286,3.4822795,3008.4,3007.5,0.13620115]
[1769620796594,3.4822795,3008.3,3007.5,0.13620115]
[1769620796794,3.4822795,3008.2,3007.5,0.13620115]
[1769620796994,0.13852186,3008.5,3007.5,0.13620115]
[1769620797182,3.48225177,3008.4,3007.5,0.13620115]
[1769620797386,3.48225177,3008.3,3007.5,0.13620115]
[1769620797582,3.48225177,3008.2,3007.5,0.13620115]
[1769620797792,4.92308124,3009.1,3007.5,0.13620115]
[1769620798097,0.14094258,3008.9,3007.5,0.13620115]
[1769620798304,3.81155814,3008.8,3007.5,0.13620115]
[1769620798493,3.48254975,3008.7,3007.5,0.13620115]
[1769620798695,3.48254975,3008.6,3007.5,0.13620115]
[1769620798994,3.48254975,3008.5,3007.5,0.13620115]
[1769620799291,3.48254975,3008.4,3007.5,0.13620115]
[1769620799493,0.14094258,3008.9,3007.5,0.13620115]
[1769620799692,3.48324246,3008.8,3007.5,0.13620115]
[1769620799891,3.48324246,3008.7,3007.5,0.13620115]
[1769620800096,3.48324246,3008.6,3007.5,0.13620115]
[1769620800297,3.48324246,3008.5,3007.6,0.14420848]
[1769620800498,0.00283987,3009.1,3007.6,0.14420848]
[1769620800804,3.81233014,3009.0,3007.6,0.14420848]
[1769620801002,3.48326213,3008.9,3007.6,0.14420848]
[1769620801204,3.48326213,3008.8,3007.6,0.14420848]
[1769620801409,3.62058046,3008.7,3007.6,0.14420848]
[1769620801705,3.48326213,3008.6,3007.6,0.14420848]
[1769620802006,3.48326213,3008.5,3007.6,0.14420848]
[1769620802306,0.13731833,3008.9,3007.6,0.14420848]
[1769620802506,3.4814678,3008.8,3007.6,0.14420848]
[1769620802720,0.00283987,3009.1,3007.8,0.14420848]
[1769620803006,3.48179835,3009.0,3008.0,0.14420848]
[1769620803207,0.13729802,3009.6,3008.0,0.14420848]
[1769620803407,3.80945098,3009.5,3008.0,0.14420848]
[1769620803615,3.80945098,3009.4,3008.0,0.14420848]
[1769620803906,3.80945098,3009.3,3008.0,0.14420848]
[1769620804107,3.48043653,3009.2,3008.0,0.14420848]
[1769620804406,0.13518356,3009.3,3008.0,0.14420848]
[1769620804608,3.46473041,3009.2,3008.0,0.14420848]
[1769620804904,0.13518356,3009.3,3008.1,0.14420848]
[1769620805200,3.46024088,3009.2,3008.1,0.14420848]